Workbook

Sheet Sheet1
A1: قطعه شماره 1 | G1: در صورت مشاهده Enable Editing روی آن کلیک نمائید!
A2: نام قطعه | D2: Hitch plate
A3: عرض | G3: در صورت مشاهده پنجره خطا END را بزنید ویکبار دیگر فایل را باز نمائید!
A4: عمق
A5: ضخامت پلیت | D5: 20 | E5: =IF(thick>0,1,0) -> 1
A6: قطر سوراخ | D6: 20 | E6: =IF(D6>0,1,0) -> 1
A7: تعداد سوراخ | D7: 8
A8: فاصله سوراخ | D8: 50 | E8: =IF(D8>0,1,0) -> 1
A9: تعداد ساخت | D9: 2 | E9: =IF(D9>0,1,0) -> 1
A10: شماره قطعه | D10: 1402211-1501 | E10: =SUM(E5:E9) -> 4 | F10: =IF(E10=4,1,0) -> 1
A12: نام پروژه | D12: Mr. Bashari
A13: شرکت | D13: FFI
A14: آدرس | D14: Tehran
A21: ="1:1" -> 1:1
A22: ="2:1" -> 2:1
A23: 1:1 | B23: =MATCH(A23,A21:A22,0) -> 1

Sheet Sheet2 (hidden)
A1: New | B1: No.1
B2: Hitch Plate | E2: para | G2: i=1 | H2: i=2 | I2: rond | J2: =IF(nooh<4,nooh*60,260) -> 260
A3: erase | B3: =L3 -> 380 | C3: w | D3: =(B3-D8)/2 -> 115 | E3: =L3 -> 380 | F3: =VLOOKUP(E3,B3:C4,2,0) -> w | G3: =E28+F28+B11+180 -> 380 | H3: =E28+F28+B11+180 -> 380 | J3: =CHOOSE(roping,G3,H3) -> 380 | K3: =Sheet1!D3 -> 0 | L3: =MAX(K3,J3) -> 380 | M3: =ROUND(M4*297/210,0) -> 622 | N3: =IF(L4>0.75*L3,M3,P3) -> 580 | O3: w | P3: =ROUND(1.5*E3+B12/2,0) -> 580 | Q3: w
A4: all | B4: =L4 -> 280 | C4: D | D4: =IF(B9>0,D3+B11/2,D3) -> 140 | E4: =N3 -> 580 | F4: p297 | G4: =(H27-1)*B11+B11+130 -> 280 | H4: =MAX(120,(H27-1)*B11+2*B11) -> 200 | I4: =ROUND(297*I5/210,0) -> 990 | J4: =CHOOSE(roping,G4,H4) -> 280 | K4: =Sheet1!D4 -> 0 | L4: =MAX(K4,J4) -> 280 | M4: =ROUND(1.5*L4,0)+B12 -> 440 | N4: =IF(L4>0.75*L3,M4,P4) -> 410 | O4: D | P4: =ROUND(P3*210/297,0) -> 410 | Q4: D
C5: r | D5: =IF(D13>0,(width-D10)/2,D4) -> 215 | E5: =N4 -> 410 | F5: p210 | H5: =ROUND(I5/E5,1) -> 1.7 | I5: =280+grand -> 700
A6: ; | B6: =Sheet1!D6 -> 20 | C6: R | E6: =width+depth-E3 -> 280 | G6: =hole/2 -> 10
A7: ; | B7: =MAX(2,Sheet1!D7) -> 8 | C7: No | D7: =IF(B7>3,ROUNDUP(nooh/2,0),B7) -> 4 | E7: =ROUNDUP(B7/2,0) -> 4 | G7: =nooh-10 -> -2 | H7: =IF(G7<1,5,G7) -> 5 | I7: =CHOOSE(H7,H9,I9,J9,K9,0) -> 0
A8: ; | B8: =D7 -> 4 | C8: =MAX(B8:B10) -> 4 | D8: =(B8-1)*B11 -> 150 | E8: =IF(B8>0,1,0) -> 1 | F8: =E13 -> 115 | G8: y1 | H8: 24.5 | I8: 11.5 | J8: 6.5 | K8: 0
A9: ; | B9: =IF(B7>5,B7-B8,0) -> 4 | D9: =(B9-1)*B11+B11/2 -> 175 | E9: =IF(B9>0,1,0) -> 1 | F9: =(E11-1)*B11+F8 -> 165 | G9: y2 | H9: =H8+$H$10 -> 24.5 | I9: =I8+$H$10 -> 11.5 | J9: 6.5 | K9: 0
A10: ; | D10: =(B10-1)*B11 -> -50 | E10: =IF(B10>0,1,0) -> 0 | F10: =(E11-2)*B11+F9 -> 165 | G10: y3 | H10: =(grand-420)/2 -> 0
A11: ="-purge" -> -purge | B11: =Sheet1!D8 -> 50 | C11: dis | E11: =SUM(E8:E10) -> 2
A12: B | B12: =thick -> 20 | C12: TH | E12: =(E11-1)*B11 -> 50 | H12: top lines
D13: =Sheet1!D9 -> 2 | E13: =(B4-E12)/2 -> 115 | G13: =INT(E5*4/210) -> 7 | H13: =E5-2*G13 -> 396 | I13: =INT(E5*6/210) -> 11 | J13: =E5-2*I13 -> 388
A14: N | H14: =E5-4*G13 -> 382 | J14: =E5-5.5*I13 -> 349.5
A15: INSUNITS
A16: 4 | E16: mid | F16: top | G16: bot
A17: dimtih | D17: 1 | E17: 1 | F17: 0 | G17: 0
A18: off | D18: 2 | E18: 2 | F18: 0 | G18: 0
A19: dimclrt | D19: 3 | E19: 2 | F19: 1 | G19: 0
A20: 7 | D20: 4 | E20: 2 | F20: 2 | G20: 0
A21: dimasz | D21: 5 | E21: 2 | F21: 2 | G21: 1
A22: =ROUND(E4*3/297,0) -> 6 | D22: 6 | E22: 2 | F22: 2 | G22: 2
A23: dimtxt | D23: 7 | E23: 3 | F23: 2 | G23: 2
A24: =A22 -> 6 | D24: 8 | E24: 3 | F24: 3 | G24: 2
A25: dimclrd | D25: 9 | E25: 3 | F25: 3 | G25: 3
A26: 1 | D26: 10 | E26: 4 | F26: 3 | G26: 3
A27: dimclre | D27: =nooh -> 8 | E27: =OFFSET(D16,MIN(10,D27),1) -> 3 | F27: =OFFSET(D16,MIN(10,D27),2) -> 3 | G27: =OFFSET(D16,MIN(10,D27),3) -> 2 | H27: =COUNTIF(E27:G27,">0") -> 3
A28: 1 | E28: =(midd-1)*B11 -> 100 | F28: =(topp-1)*B11/2 -> 50
A29: dimfxlon | D29: x | E29: =IF(midd>topp,(B3-E28)/2,(B3-E28)/2-B11/4) -> 127.5 | F29: =CHOOSE(H27,E29,E29+B11/2,E29+B11/2) -> 152.5 | G29: =F29 -> 152.5
A30: on | D30: start | E30: =E29&","&E31 -> 127.5,140 | F30: =F29&","&F31 -> 152.5,190 | G30: 152.5,90
A31: dimfxl | D31: y | E31: =CHOOSE(H27,B4/2,B4/2-B11/2,B4/2) -> 140 | F31: =CHOOSE(H27,B4/2,B4/2+B11/2,B4/2+B11) -> 190 | G31: =CHOOSE(H27,B4/2,B4/2-B11/2,B4/2-B11) -> 90
A32: =A24 -> 6
A33: dimexe
A34: =A22/2 -> 3
A35: dimgap
A36: =0.1*A24 -> 0.6
A37: dimdec
A38: 0
A39: dimscale
A40: 1
A41: angdir
A42: 0
A43: osmode
A44: 0
A45: ="-style" -> -style
A46: arial
A47: ARIAL
A48: 0
A49: 1
A50: 0
A51: No
A52: No
A53: erase
A54: all
A56: rectang
A57: 0,0
A58: =E4&","&E5 -> 580,410
A59: rectang
A60: ="0,"&INT(0.91*E5) -> 0,373
A61: =E4&","&E5 -> 580,410
A62: rectang
A63: =INT(E4/3)&","&INT(0.91*E5) -> 193,373
A64: =INT(2*E4/3)&","&E5 -> 386,410
A65: ="-text" -> -text
A66: =INT(1.2*E4/3)&","&J13 -> 232,388
A67: =INT(E5*6/210) -> 11
A68: 0
A69: =Name -> Hitch plate
A70: ="-TEXT" -> -TEXT
A71: =INT(1.15*E4/3)&","&J14 -> 222,349.5
A72: =INT(E5*6/210) -> 11
A73: 0
A74: DIMENSIONS mm
A75: ="-text" -> -text
A76: =INT(0.1*E4/3)&","&H13 -> 19,396
A77: =INT(E5*4/210) -> 7
A78: 0
A79: Installation company
A80: ="-text" -> -text
A81: =INT(0.3*E4/3)&","&H14 -> 58,382
A82: =INT(E5*4/210) -> 7
A83: 0
A84: =company -> FFI
A85: ="-text" -> -text
A86: =INT(2.12*E4/3)&","&H13 -> 409,396
A87: =INT(E5*4/210) -> 7
A88: 0
A89: ="Project: "&prjname -> Project: Mr. Bashari
A90: ="-text" -> -text
A91: =INT(2.3*E4/3)&","&H14 -> 444,382
A92: =INT(E5*4/210) -> 7
A93: 0
A94: ="Location: "&prjloc -> Location: Tehran
A95: ="-text" -> -text
A96: =INT(2.1*E4/3)&","&INT(0.1*E5) -> 406,41
A97: =INT(E5*4.5/210) -> 8
A98: 0
A99: ="Material: Steel plate "&thick&" mm" -> Material: Steel plate 20 mm
A100: ="-text" -> -text
A101: =INT(2.1*E4/3)&","&INT(0.1*E5)-2*A97 -> 406,25
A102: =INT(E5*4.5/210) -> 8
A103: 0
A104: Qantity: 2 pcs
A105: zoom
A106: all
A107: offset
A108: =INT(E5*4/210) -> 7
A109: 0,0
A110: ="-90,0" -> -90,0
A112: cecolor
A113: 200
A114: ="-text" -> -text
A115: ="-2,5" -> -2,5
A116: =INT(E5*2/210) -> 3
A117: 90
A118: visit miniLiftdesigner : https://bardiarad.ir
A119: ="-block" -> -block
A120: lands
A121: 0,0
A122: all
A124: cecolor
A125: 7
A126: ="-insert" -> -insert
A127: lands
A128: 0,0
A129: 1
A130: 1
A131: 0
A132: move
A133: L
A135: 0,0
A136: =-(E4-E3)/2&","&-(E5-E6)/2 -> -100,-65
A137: rectang
A138: 0,0
A139: =B3&","&B4 -> 380,280
A140: zoom
A141: all
A142: circle
A143: =E30 -> 127.5,140
A144: =B6/2 -> 10
A145: ="-array" -> -array
A146: L
A148: R
A149: 1
A150: =midd -> 3
A151: =B11 -> 50
A152: =IF($H$27>1,B152,C152) -> circle | B152: circle | C152: ;
A153: =IF($H$27>1,B153,C153) -> 152.5,190 | B153: =F30 -> 152.5,190 | C153: ;
A154: 10 | B154: =B6/2 -> 10 | C154: ;
A155: =IF(topp>1,B155,C155) -> -array | B155: ="-array" -> -array | C155: ;
A156: =IF(topp>1,B156,C156) -> L | B156: L | C156: ;
A157: =IF(topp>1,CONCATENATE(B157),C157) ->  | C157: ;
A158: =IF(topp>1,B158,C158) -> R | B158: R | C158: ;
A159: =IF(topp>1,B159,C159) -> 1 | B159: 1 | C159: ;
A160: =IF(topp>1,B160,C160) -> 3 | B160: =topp -> 3 | C160: ;
A161: =IF(topp>1,B161,C161) -> 50 | B161: =B11 -> 50 | C161: ;
A162: =IF($H$27>2,B162,C162) -> circle | B162: circle | C162: ;
A163: =IF($H$27>2,B163,C163) -> 152.5,90 | B163: =G30 -> 152.5,90 | C163: ;
A164: 10 | B164: =B6/2 -> 10 | C164: ;
A165: =IF(bott>1,B165,C165) -> -array | B165: ="-array" -> -array | C165: ;
A166: =IF(bott>1,B166,C166) -> L | B166: L | C166: ;
A167: =IF(bott>1,CONCATENATE(B167),C167) ->  | C167: ;
A168: =IF(bott>1,B168,C168) -> R | B168: R | C168: ;
A169: =IF(bott>1,B169,C169) -> 1 | B169: 1 | C169: ;
A170: =IF(bott>1,B170,C170) -> 2 | B170: =bott -> 2 | C170: ;
A171: =IF(bott>1,B171,C171) -> 50 | B171: =B11 -> 50 | C171: ;
A172: dimdiameter | B172: circle
A173: =E29+hole/2&","&E31 -> 137.5,140 | B173: =D5&","&F10 -> 215,165
A174: =E29+hole/2&","&E31+hole/2 -> 137.5,150 | B174: =B6/2 -> 10
A175: ;
A176: ;
A177: ;
A178: dimlinear
A179: 0,0
A180: =width&",0" -> 380,0
A181: ="@"&A24*2&"<270" -> @12<270
A182: dimlinear
A183: =width &",0" -> 380,0
A184: =width&","&depth -> 380,280
A185: ="@"&A24*2&"<0" -> @12<0
A186: dimlinear
A187: ="0,"&E31 -> 0,140
A188: =E29&","&E31 -> 127.5,140
A189: ="@"&A24*2&"<270" -> @12<270
A190: dimlinear
A191: =E29&","&E31 -> 127.5,140
A192: =E29+B11&","&E31 -> 177.5,140
A193: ="@"&A32*2&"<270" -> @12<270
A194: =IF(midd>2,B194,C194) -> dimlinear | B194: dimlinear | C194: ;
A195: =IF(midd>2,B195,C195) -> 177.5,140 | B195: =E29+B11&","&E31 -> 177.5,140 | C195: ;
A196: =IF(midd>2,B196,C196) -> 227.5,140 | B196: =E29+2*B11&","&E31 -> 227.5,140 | C196: ;
A197: =IF(midd>2,B197,C197) -> @12<270 | B197: ="@"&A32*2&"<270" -> @12<270 | C197: ;
A198: ; | C198: ;
A199: =IF(nooh>2,B199,C199) -> dimlinear | B199: dimlinear | C199: ;
A200: =IF(nooh>2,B200,C200) -> 0,190 | B200: ="0,"&F31 -> 0,190 | C200: ;
A201: =IF(nooh>2,B201,C201) -> 152.5,190 | B201: =F29&","&F31 -> 152.5,190 | C201: ;
A202: =IF(nooh>2,B202,C202) -> @12<270 | B202: ="@"&A32*2&"<270" -> @12<270 | C202: ;
A203: =IF(nooh>4,B203,C203) -> dimlinear | B203: dimlinear | C203: ;
A204: =IF(nooh>4,B204,C204) -> 0,90 | B204: ="0,"&G31 -> 0,90 | C204: ;
A205: =IF(nooh>4,B205,C205) -> 152.5,90 | B205: =G29&","&G31 -> 152.5,90 | C205: ;
... 232 more rows
